lending/lending_fUSD_20250920
["ID","MTS","AMOUNT","RATE_DAILY","PERIOD"]
[386577276,1758406251277,-673.15,0.00024657,3]
[386577278,1758406251286,-400.0,0.00024657,3]
[386577280,1758406251295,-673.15,0.00024657,3]
[386577282,1758406251304,-673.15,0.00024657,3]
[386577283,1758406251315,-673.15,0.00024657,3]
[386577284,1758406251324,-400.0,0.00024657,3]
[386577285,1758406251333,-673.15,0.00024657,3]
[386577286,1758406251343,-673.16364728,0.00024657,3]
[386577287,1758406251352,-400.0,0.00024657,3]
[386577288,1758406251362,-400.0,0.00024657,3]
[386577289,1758406251371,-974.99,0.00024657,3]
[386577290,1758406251380,-400.0,0.00024657,3]
[386577292,1758406251389,-400.0,0.00024657,3]
[386577294,1758406251398,-400.0,0.00024657,3]
[386577296,1758406251408,-400.0,0.00024657,3]
[386577298,1758406251417,-500.0,0.00024657,3]
[386577300,1758406251427,-400.0,0.00024657,3]
[386577302,1758406251436,-500.0,0.00024657,3]
[386577304,1758406251445,-400.0,0.00024657,3]
[386577306,1758406251455,-500.0,0.00024657,3]
[386577308,1758406251464,-500.0,0.00024657,3]
[386577310,1758406251473,-400.0,0.00024657,3]
[386577312,1758406251482,-500.0,0.00024657,3]
[386577314,1758406251491,-500.0,0.00024657,3]
[386577316,1758406251500,-500.0,0.00024657,3]
[386577318,1758406251509,-151.0,0.00024657,7]
[386577320,1758406251519,-500.0,0.00024657,3]
[386577322,1758406251528,-400.0,0.00024657,3]
[386577324,1758406251537,-500.0,0.00024657,3]
[386577326,1758406251547,-658.15,0.00024657,3]
[386577328,1758406251556,-151.0,0.00024657,7]
[386577330,1758406251565,-1319.23,0.00024657,3]
[386577332,1758406251574,-500.0,0.00024657,3]
[386577334,1758406251584,-151.0,0.00024657,7]
[386577336,1758406251593,-500.0,0.00024657,3]
[386577338,1758406251602,-400.0,0.00024657,3]
[386577340,1758406251611,-151.0,0.00024657,7]
[386577342,1758406251620,-500.0,0.00024657,3]
[386577344,1758406251630,-400.0,0.00024657,3]
[386577346,1758406251640,-400.0,0.00024657,3]
[386577348,1758406251648,-513.44311687,0.00024657,3]
[386577350,1758406251658,-400.0,0.00024657,3]
[386577352,1758406251667,-1284.74,0.00024657,3]
[386577354,1758406251677,-818.7,0.00024657,3]
[386577356,1758406251686,-3161.94,0.00024657,3]
[386577358,1758406251695,-151.0,0.00024657,7]
[386577360,1758406251704,-151.0,0.00024657,7]
[386577362,1758406251714,-400.0,0.00024657,3]
[386577364,1758406251723,-400.0,0.00024657,3]
[386577366,1758406251732,-250.482671,0.00024657,7]
[386577368,1758406251741,-400.0,0.00024657,3]
[386577370,1758406251750,-400.0,0.00024657,3]
[386577372,1758406251759,-400.0,0.00024657,3]
[386577374,1758406251769,-400.0,0.00024657,3]
[386577376,1758406251778,-1023.75,0.00024657,3]
[386577378,1758406251787,-400.0,0.00024657,3]
[386577380,1758406251796,-400.0,0.00024657,3]
[386577382,1758406251808,-1326.12,0.00024657,3]
[386577384,1758406251817,-400.0,0.00024657,3]
[386577386,1758406251826,-400.0,0.00024657,3]
[386577388,1758406251835,-400.0,0.00024657,3]
[386577390,1758406251845,-400.0,0.00024657,3]
[386577392,1758406251854,-1697.27,0.00024657,3]
[386577394,1758406251863,-400.0,0.00024657,3]
[386577396,1758406251873,-415.1,0.00024657,3]
[386577398,1758406251882,-415.05,0.00024657,3]
[386577425,1758406252129,-500.0,0.00024657,5]
[386577427,1758406252139,-482.91,0.00024657,3]
[386577429,1758406252148,-1351.39,0.00024657,3]
[386577431,1758406252157,-400.0,0.00024657,3]
[386577433,1758406252167,-400.0,0.00024657,3]
[386577435,1758406252176,-1235.02,0.00024657,3]
[386577437,1758406252186,-1474.63,0.00024657,3]
[386577439,1758406252196,-400.0,0.00024657,3]
[386577441,1758406252205,-400.0,0.00024657,3]
[386577443,1758406252214,-400.0,0.00024657,3]
[386577445,1758406252223,-1147.37,0.00024657,3]
[386577447,1758406252233,-400.0,0.00024657,3]
[386577449,1758406252243,-400.0,0.00024657,3]
[386577451,1758406252251,-400.0,0.00024657,3]
[386577453,1758406252261,-400.0,0.00024657,3]
[386577455,1758406252271,-436.34,0.00024657,3]
[386577457,1758406252282,-904.32,0.00024657,3]
[386577459,1758406252292,-329.38673771,0.00024657,3]
[386577461,1758406252301,-400.0,0.00024657,3]
[386577463,1758406252311,-677.52,0.00024657,3]
[386577465,1758406252320,-400.0,0.00024657,3]
[386577467,1758406252329,-1056.63,0.00024657,3]
[386577469,1758406252339,-1056.99,0.00024657,3]
[386577471,1758406252349,-400.0,0.00024657,3]
[386577473,1758406252358,-1236.03,0.00024657,3]
[386577475,1758406252367,-922.13,0.00024657,3]
[386577477,1758406252376,-400.0,0.00024657,3]
[386577479,1758406252385,-400.0,0.00024657,3]
[386577481,1758406252395,-400.0,0.00024657,3]
[386577483,1758406252404,-400.0,0.00024657,3]
[386577485,1758406252413,-400.0,0.00024657,3]
[386577487,1758406252423,-400.0,0.00024657,2]
[386577489,1758406252432,-400.0,0.00024657,3]
[386577490,1758406252441,-500.0,0.00024657,3]
[386577491,1758406252450,-500.0,0.00024657,3]
[386577492,1758406252459,-731.53,0.00024657,3]
[386577493,1758406252469,-500.0,0.00024657,3]
[386577494,1758406252478,-500.0,0.00024657,3]
[386577495,1758406252487,-500.0,0.00024657,3]
[386577496,1758406252497,-540.43,0.00024657,3]
[386577497,1758406252507,-500.0,0.00024657,3]
[386577498,1758406252516,-400.0,0.00024657,3]
[386577499,1758406252525,-500.0,0.00024657,3]
[386577501,1758406252535,-1149.27,0.00024657,3]
[386577502,1758406252545,-500.0,0.00024657,3]
[386577503,1758406252554,-417.1,0.00024657,3]
[386577504,1758406252563,-500.0,0.00024657,3]
[386577505,1758406252573,-500.0,0.00024657,3]
[386577506,1758406252582,-400.0,0.00024657,3]
[386577507,1758406252591,-500.0,0.00024657,3]
[386577508,1758406252601,-1035.23,0.00024657,3]
[386577509,1758406252611,-400.0,0.00024657,3]
[386577510,1758406252620,-400.0,0.00024657,3]
[386577511,1758406252629,-500.0,0.00024657,3]
[386577512,1758406252639,-500.0,0.00024657,3]
[386577513,1758406252648,-561.74305882,0.00024657,3]
[386577514,1758406252658,-151.0,0.00024657,7]
[386577515,1758406252667,-400.0,0.00024657,3]
[386577516,1758406252677,-481.83,0.00024657,3]
[386577517,1758406252687,-151.0,0.00024657,7]
[386577518,1758406252696,-400.0,0.00024657,3]
[386577519,1758406252706,-400.0,0.00024657,3]
[386577520,1758406252715,-400.0,0.00024657,3]
[386577521,1758406252724,-400.0,0.00024657,3]
[386577522,1758406252733,-634.25,0.00024657,3]
[386577523,1758406252742,-400.0,0.00024657,3]
[386577524,1758406252751,-400.0,0.00024657,3]
[386577525,1758406252760,-400.0,0.00024657,3]
[386577526,1758406252769,-983.17,0.00024657,3]
[386577527,1758406252779,-400.0,0.00024657,3]
[386577528,1758406252788,-400.0,0.00024657,3]
[386577529,1758406252798,-400.0,0.00024657,3]
[386577530,1758406252808,-400.0,0.00024657,3]
[386577531,1758406252817,-1283.77,0.00024657,3]
[386577533,1758406252827,-400.0,0.00024657,3]
[386577534,1758406252836,-400.0,0.00024657,3]
[386577535,1758406252846,-400.0,0.00024657,3]
[386577536,1758406252855,-400.0,0.00024657,3]
[386577537,1758406252864,-400.0,0.00024657,3]
[386577538,1758406252873,-400.0,0.00024657,3]
[386577539,1758406252883,-1224.4,0.00024657,3]
[386577540,1758406252892,-596.26,0.00024657,3]
[386577541,1758406252902,-400.0,0.00024657,3]
[386577542,1758406252911,-924.02,0.00024657,3]
[386577543,1758406252921,-1197.95,0.00024657,3]
[386577544,1758406252930,-400.0,0.00024657,3]
[386577545,1758406252940,-1099.99,0.00024657,3]
[386577546,1758406252950,-482.35,0.00024657,3]
[386577547,1758406252959,-400.0,0.00024657,3]
[386577548,1758406252969,-400.0,0.00024657,3]
[386577549,1758406252978,-1422.39,0.00024657,3]
[386577550,1758406252988,-400.0,0.00024657,3]
[386577551,1758406252997,-1842.45,0.00024657,3]
[386577552,1758406253007,-400.0,0.00024657,3]
[386577553,1758406253016,-400.0,0.00024657,3]
[386577554,1758406253026,-400.0,0.00024657,3]
[386577555,1758406253035,-400.0,0.00024657,3]
[386577556,1758406253044,-400.0,0.00024657,3]
[386577557,1758406253054,-1496.66,0.00024657,3]
[386577558,1758406253063,-1217.69,0.00024657,3]
[386577559,1758406253073,-400.0,0.00024657,3]
[386577560,1758406253083,-400.0,0.00024657,3]
[386577561,1758406253092,-400.0,0.00024657,3]
[386577562,1758406253102,-945.13,0.00024657,3]
[386577563,1758406253111,-151.0,0.00024657,7]
[386577564,1758406253121,-400.0,0.00024657,3]
[386577565,1758406253132,-1520.15,0.00024657,3]
[386577567,1758406253142,-400.0,0.00024657,3]
[386577568,1758406253151,-400.0,0.00024657,3]
[386577569,1758406253160,-1346.4,0.00024657,3]
[386577570,1758406253170,-1027.39,0.00024657,3]
[386577571,1758406253179,-400.0,0.00024657,3]
[386577572,1758406253190,-400.0,0.00024657,3]
[386577573,1758406253200,-400.0,0.00024657,3]
[386577574,1758406253210,-400.0,0.00024657,3]
[386577575,1758406253220,-400.0,0.00024657,3]
[386577576,1758406253230,-1029.61,0.00024657,3]
[386577577,1758406253240,-400.0,0.00024657,3]
[386577578,1758406253248,-400.0,0.00024657,3]
[386577579,1758406253259,-1444.25,0.00024657,3]
[386577580,1758406253268,-400.0,0.00024657,3]
[386577581,1758406253279,-524.45,0.00024657,3]
[386577582,1758406253289,-400.0,0.00024657,3]
[386577583,1758406253298,-400.0,0.00024657,3]
[386577584,1758406253307,-400.0,0.00024657,3]
[386577585,1758406253317,-400.0,0.00024657,3]
[386577586,1758406253327,-400.0,0.00024657,3]
[386577587,1758406253336,-400.0,0.00024657,3]
[386577588,1758406253346,-400.0,0.00024657,3]
[386577589,1758406253357,-400.0,0.00024657,3]
[386577590,1758406253367,-400.0,0.00024657,3]
[386577591,1758406253376,-629.76,0.00024657,3]
[386577592,1758406253385,-400.0,0.00024657,3]
[386577593,1758406253395,-400.0,0.00024657,3]
[386577594,1758406253405,-400.0,0.00024657,3]
[386577595,1758406253415,-500.0,0.00024657,3]
[386577596,1758406253424,-1189.49,0.00024657,3]
[386577597,1758406253433,-529.22,0.00024657,3]
[386577598,1758406253445,-400.0,0.00024657,3]
[386577599,1758406253455,-1259.11,0.00024657,3]
[386577600,1758406253465,-400.0,0.00024657,3]
[386577601,1758406253474,-1331.96,0.00024657,3]
[386577602,1758406253483,-400.0,0.00024657,3]
[386577603,1758406253493,-400.0,0.00024657,3]
[386577604,1758406253502,-317.87481279,0.00024657,3]
[386577605,1758406253511,-400.0,0.00024657,3]
[386577606,1758406253520,-151.0,0.00024657,2]
[386577607,1758406253530,-4861.57,0.00024657,3]
[386577608,1758406253539,-705.83,0.00024657,3]
[386577609,1758406253548,-400.0,0.00024657,3]
[386577610,1758406253557,-992.85,0.00024657,3]
[386577611,1758406253566,-504.73,0.00024657,3]
[386577612,1758406253575,-400.0,0.00024657,3]
[386577613,1758406253584,-400.0,0.00024657,3]
[386577614,1758406253594,-479.07,0.00024657,3]
[386577615,1758406253604,-400.0,0.00024657,3]
[386577616,1758406253613,-400.0,0.00024657,3]
[386577617,1758406253622,-1279.44,0.00024657,3]
[386577618,1758406253631,-400.0,0.00024657,3]
[386577619,1758406253641,-4810.5,0.00024657,3]
[386577620,1758406253652,-1006.21,0.00024657,3]
[386577621,1758406253662,-911.26,0.00024657,3]
[386577622,1758406253671,-400.0,0.00024657,3]
[386577623,1758406253680,-1085.31,0.00024657,3]
[386577624,1758406253689,-400.0,0.00024657,3]
[386577625,1758406253699,-1717.01,0.00024657,3]
[386577626,1758406253708,-1068.84,0.00024657,3]
[386577627,1758406253717,-1717.01,0.00024657,3]
[386577628,1758406253726,-400.0,0.00024657,3]
[386577629,1758406253736,-1717.01,0.00024657,3]
[386577630,1758406253745,-400.0,0.00024657,3]
[386577631,1758406253754,-1717.01,0.00024657,3]
[386577632,1758406253764,-1717.01,0.00024657,3]
[386577633,1758406253773,-400.0,0.00024657,3]
[386577634,1758406253783,-1717.01,0.00024657,3]
[386577635,1758406253792,-400.0,0.00024657,3]
[386577636,1758406253802,-1717.01,0.00024657,3]
[386577637,1758406253811,-400.0,0.00024657,3]
[386577638,1758406253821,-1717.01,0.00024657,3]
[386577639,1758406253830,-1717.01,0.00024657,3]
[386577640,1758406253839,-400.0,0.00024657,3]
[386577641,1758406253848,-933.57,0.00024657,3]
[386577642,1758406253857,-1717.01,0.00024657,3]
[386577643,1758406253867,-400.0,0.00024657,3]
[386577644,1758406253876,-1184.9,0.00024657,3]
[386577645,1758406253885,-400.0,0.00024657,3]
[386577646,1758406253895,-1717.01,0.00024657,3]
[386577647,1758406253905,-427.39,0.00024657,3]
[386577648,1758406253914,-1717.01,0.00024657,3]
[386577649,1758406253923,-400.0,0.00024657,3]
[386577650,1758406253933,-836.97,0.00024657,3]
[386577651,1758406253943,-1367.72,0.00024657,3]
[386577652,1758406253952,-1717.01,0.00024657,3]
[386577653,1758406253961,-1223.48,0.00024657,3]
[386577654,1758406253970,-1717.01,0.00024657,3]
[386577655,1758406253979,-400.0,0.00024657,3]
[386577656,1758406253988,-1717.01,0.00024657,3]
[386577657,1758406253998,-400.0,0.00024657,3]
[386577658,1758406254007,-400.0,0.00024657,3]
[386577659,1758406254016,-400.0,0.00024657,3]
[386577660,1758406254025,-1717.01,0.00024657,3]
[386577661,1758406254034,-400.0,0.00024657,3]
[386577662,1758406254044,-400.0,0.00024657,3]
[386577663,1758406254053,-1717.01,0.00024657,3]
[386577664,1758406254063,-1717.01,0.00024657,3]
[386577665,1758406254072,-400.0,0.00024657,3]
[386577666,1758406254081,-1717.01,0.00024657,3]
[386577667,1758406254090,-400.0,0.00024657,3]
[386577668,1758406254099,-400.0,0.00024657,3]
[386577669,1758406254108,-1717.01,0.00024657,3]
[386577670,1758406254118,-1717.01,0.00024657,3]
[386577671,1758406254127,-151.0,0.00024657,7]
[386577672,1758406254136,-151.0,0.00024657,7]
[386577673,1758406254146,-1717.01,0.00024657,3]
[386577674,1758406254155,-400.0,0.00024657,3]
[386577675,1758406254164,-1717.01,0.00024657,3]
[386577676,1758406254174,-400.0,0.00024657,3]
[386577677,1758406254183,-400.0,0.00024657,3]
[386577678,1758406254193,-1717.22396144,0.00024657,3]
[386577679,1758406254202,-1088.2,0.00024657,3]
[386577680,1758406254211,-400.0,0.00024657,3]
[386577681,1758406254220,-400.0,0.00024657,3]
[386577682,1758406254230,-400.0,0.00024657,3]
[386577683,1758406254239,-400.0,0.00024657,3]
[386577684,1758406254249,-930.32,0.00024657,3]
[386577685,1758406254258,-400.0,0.00024657,3]
[386577686,1758406254268,-614.12,0.00024657,3]
[386577687,1758406254277,-533.46,0.00024657,3]
[386577688,1758406254287,-400.0,0.00024657,3]
[386577689,1758406254296,-400.0,0.00024657,3]
[386577690,1758406254305,-400.0,0.00024657,3]
[386577691,1758406254315,-400.0,0.00024657,3]
[386577692,1758406254324,-400.0,0.00024657,3]
[386577693,1758406254334,-400.0,0.00024657,3]
[386577694,1758406254344,-1477.23,0.00024657,3]
[386577695,1758406254354,-400.0,0.00024657,3]
[386577696,1758406254364,-1012.89,0.00024657,3]
[386577697,1758406254374,-400.0,0.00024657,3]
[386577698,1758406254383,-400.0,0.00024657,3]
[386577699,1758406254393,-913.01,0.00024657,3]
[386577700,1758406254403,-400.0,0.00024657,3]
[386577701,1758406254413,-400.0,0.00024657,3]
[386577702,1758406254422,-103.93546572,0.00024657,3]
[386577705,1758406256824,-1233.90453428,0.00024657,3]
[386577706,1758406256834,-151.0,0.00024657,7]
[386577707,1758406256843,-151.0,0.00024657,7]
[386577708,1758406256852,-400.0,0.00024657,3]
[386577709,1758406256862,-67.31110235,0.00024657,7]
[386577710,1758406256874,-83.68889765,0.00024657,7]
[386577711,1758406256883,-400.0,0.00024657,3]
[386577712,1758406256892,-400.0,0.00024657,3]
[386577713,1758406256902,-873.81,0.00024657,3]
[386577714,1758406256911,-400.0,0.00024657,3]
[386577715,1758406256920,-81.42333109,0.00024657,3]
[386577716,1758406257713,-638.76037994,0.00019329,2]
[386577717,1758406257723,-4229.0,0.00021643,2]
[386577718,1758406257732,-140.87120626,0.00024657,3]
[386577719,1758406257744,-806.28813669,0.00024657,3]
[386577720,1758406258194,-300.0,0.00024657,3]
[386577721,1758406258203,-730.4,0.00024657,3]
[386577722,1758406258213,-400.0,0.00024657,3]
[386577723,1758406258222,-400.0,0.00024657,3]
[386577724,1758406258232,-151.0,0.00024657,7]
[386577725,1758406258241,-151.0,0.00024657,7]
[386577726,1758406258251,-151.0,0.00024657,7]
[386577727,1758406258259,-4816.6,0.00024657,3]
[386577728,1758406258282,-2542.11,0.00024657,3]
[386577729,1758406258291,-400.0,0.00024657,3]
[386577730,1758406258300,-151.0,0.00024657,7]
[386577731,1758406258311,-151.0,0.00024657,7]
[386577732,1758406258321,-428.58,0.00024657,3]
[386577733,1758406258331,-400.0,0.00024657,3]
[386577734,1758406258339,-151.0,0.00024657,7]
[386577735,1758406258349,-151.0,0.00024657,7]
[386577736,1758406258358,-151.0,0.00024657,7]
[386577737,1758406258367,-400.0,0.00024657,3]
[386577738,1758406258376,-151.0,0.00024657,7]
[386577739,1758406258386,-400.0,0.00024657,3]
[386577740,1758406258395,-400.0,0.00024657,3]
[386577741,1758406258404,-400.0,0.00024657,3]
[386577742,1758406258414,-60.75223657,0.00024657,3]
[386577756,1758406511033,193.11,0.00011809,2]
[386577757,1758406511241,193.11,0.00017714,2]
[386577853,1758407181815,2264.02,0.000301,120]
[386577919,1758407347606,-605.59517097,0.000199,2]
[386577920,1758407347628,-163.83716729,0.000199,2]
[386577921,1758407347650,-500.0,0.00019973,2]
[386577922,1758407347676,-500.0,0.00019996,2]
[386577923,1758407347700,-500.0,0.00019996,2]
[386577924,1758407347726,-268.39596128,0.00019996,2]
[386577925,1758407347748,-1200.0,0.00019999,2]
[386577926,1758407347772,-303.69079453,0.00019999,2]
[386577927,1758407347794,-500.0,0.00019999,2]
[386577928,1758407347817,-165.46247193,0.00019999,2]
[386577929,1758407347844,-381.86831872,0.00019999,2]
[386577930,1758407347867,-382.40896205,0.00019999,2]
[386577931,1758407347891,-9528.74115323,0.0002,2]
[386577933,1758407348472,-500.0,0.00019973,2]
[386577934,1758407348496,-14500.0,0.0002,2]
[386577935,1758407349128,-15000.0,0.0002,2]
[386577936,1758407349581,-15000.0,0.0002,2]
[386577937,1758407350068,-15000.0,0.0002,2]
[386577938,1758407350610,-15000.0,0.0002,2]
[386577939,1758407350985,-15000.0,0.0002,2]
[386577940,1758407351442,-15000.0,0.0002,2]
[386577941,1758407352532,-15000.0,0.0002,2]
[386577942,1758407353459,-500.0,0.00019973,2]
[386577943,1758407353481,-184.02533393,0.00019973,2]
[386577944,1758407353505,-14315.97466607,0.0002,2]
[386577946,1758407354970,-15000.0,0.0002,2]
[386577951,1758407369851,-501.80751593,0.00019973,2]
[386577952,1758407369873,-1881.71,0.0002,2]
[386577953,1758407369897,-7002.48248407,0.0002,2]
[386577969,1758407421896,174.83,0.00010789,2]
[386577970,1758407422110,174.83,0.00014386,2]
[386577971,1758407422321,174.83,0.00017982,2]
[386577979,1758407432026,-841.6056,0.000199,2]
[386577980,1758407432036,-2124.2407,0.000199,2]
[386577981,1758407432045,-1200.0,0.00019999,2]
[386577982,1758407432055,-850.0,0.00019999,2]
[386577983,1758407432065,-5008.33988712,0.00019999,2]
[386577984,1758407432074,-4458.33770549,0.0002,2]
[386577985,1758407432084,-9257.01117481,0.0002,2]
[386577986,1758407432129,-2034.143293,0.0002,2]
[386577987,1758407432150,-587.70881217,0.0002,2]
[386577988,1758407432162,-484.49668922,0.0002,2]
[386577989,1758407432189,-537.85391239,0.0002,2]
[386577990,1758407432304,-650.0,0.0002,2]
[386577991,1758407432316,-2097.5714287,0.0002,2]
[386577992,1758407432328,-26195.80189138,0.0002,2]
[386577993,1758407432339,-4223.61608057,0.0002,2]
[386577994,1758407432359,-29019.62223415,0.0002,2]
[386577996,1758407432462,-406276.05002902,0.0002,2]
[386577998,1758407432472,-575378.91118876,0.0002,2]
[386577999,1758407432483,-500.0,0.0002,2]
[386578000,1758407432493,-360863.88563435,0.0002,2]
[386578001,1758407432504,-300.0,0.0002,2]
[386578002,1758407432516,-2741.16468483,0.0002,2]
[386578003,1758407432563,-250.0,0.0002,2]
[386578004,1758407432575,-95348.05964758,0.0002,2]
[386578005,1758407432587,-500.41260515,0.0002,2]
[386578006,1758407432598,-3658.75505049,0.0002,2]
[386578007,1758407432609,-317.91518327,0.0002,2]
[386578009,1758407437945,-261.52156641,0.0002,2]
[386578010,1758407437957,-1163.39689181,0.0002,2]
[386578011,1758407437970,-655.00000018,0.0002,2]
[386578012,1758407437983,-4558.62329398,0.0002,2]
[386578013,1758407438071,-917.54511471,0.0002,2]
[386578014,1758407438082,-3560.67995293,0.0002,2]
[386578015,1758407438094,-628.73244732,0.0002,2]
[386578016,1758407438107,-7407.99859993,0.0002,2]
[386578017,1758407438155,-967.54661949,0.0002,2]
[386578018,1758407438167,-71088.15563657,0.0002,2]
[386578019,1758407438242,-3782.26778049,0.0002,2]
[386578023,1758407438416,-528.5078851,0.0002,2]
[386578040,1758407440897,-400.0,0.0002,2]
[386578041,1758407440927,-36622.99252956,0.0002,2]
[386578042,1758407440938,-2606.66974647,0.0002,2]
[386578043,1758407440949,-3349.52,0.0002,2]
[386578050,1758407443260,-5314.17,0.0002,2]
[386578051,1758407443300,-10000.0,0.0002,2]
[386578376,1758408070728,1019.737542,0.00019188,2]
[386578409,1758408176132,1986.78,0.00019084,2]
[386578411,1758408228597,500.0,0.00013699,2]
[386578416,1758408361185,2232.482458,0.00019027,2]
[386578417,1758408361538,1203.207542,0.00019027,2]
[386578418,1758408407872,250.0,0.00019069,2]
[386578419,1758408434072,260.696175,0.00019185,2]
[386578421,1758408441849,4025.096283,0.00019034,2]
[386578422,1758408441876,5739.0,0.00019034,2]
[386578423,1758408441902,5739.0,0.00019034,2]
[386578424,1758408441929,3957.0,0.00019034,2]
[386578429,1758408531007,1291.9,9.535e-05,2]
[386578430,1758408531206,1291.9,0.00010037,2]
[386578431,1758408531624,1291.9,0.00010539,2]
[386578432,1758408531882,1291.9,0.0001104,2]
[386578433,1758408532089,1291.9,0.00011542,2]
[386578434,1758408532337,1291.9,0.00012044,2]
[386578435,1758408532493,1291.9,0.00012546,2]
[386578436,1758408532774,1291.9,0.00013048,2]
[386578437,1758408532983,1291.9,0.0001355,2]
[386578438,1758408534373,1291.9,0.00014051,2]
[386578439,1758408534523,1291.9,0.00014553,2]
[386578440,1758408534601,1291.9,0.00015055,2]
[386578441,1758408534750,1291.9,0.00015557,2]
[386578442,1758408534820,1291.9,0.00016059,2]
[386578443,1758408534883,1291.9,0.00016561,2]
[386578444,1758408534969,1291.9,0.00017062,2]
[386578445,1758408535330,1291.9,0.00017564,2]
[386578446,1758408535553,1291.9,0.00018066,2]
[386578447,1758408535724,1291.9,0.00018568,2]
[386578482,1758408633191,-158.12,0.00019026,2]
[386578483,1758408633201,-162.74,0.00019027,2]
[386578484,1758408633211,-958.11,0.00019033,2]
[386578485,1758408633220,-203.0,0.00019033,2]
[386578486,1758408633230,-300.0,0.00019033,2]
[386578487,1758408633240,-1200.0,0.00019033,2]
[386578488,1758408633249,-300.0,0.00019033,2]
[386578489,1758408633259,-7978.86233062,0.00019034,2]
[386578490,1758408633271,-50202.40893144,0.00019034,2]
[386578491,1758408633283,-28940.54894332,0.00019034,2]
[386578492,1758408633294,-32722.77351162,0.00019034,2]
[386578493,1758408633304,-1291.9,0.0001907,2]
[386578494,1758408633314,-782.3,0.00019202,2]
[386578495,1758408633323,-500.0,0.00019242,2]
[386578496,1758408633333,-565.40130934,0.00019242,2]
[386578497,1758408633343,-169.10714989,0.00019242,2]
[386578498,1758408633353,-500.0,0.00019242,2]
[386578499,1758408633362,-560.67069784,0.00019242,2]
[386578500,1758408633372,-2500.0,0.00019243,2]
[386578501,1758408633382,-150.94,0.00019285,2]
[386578502,1758408633392,-246.58073804,0.00019285,2]
[386578503,1758408633402,-2500.0,0.00019298,2]
[386578504,1758408633412,-1200.0,0.00019331,2]
[386578505,1758408633422,-203.97,0.00019334,2]
[386578506,1758408633432,-1000.0,0.00019334,2]
[386578507,1758408633441,-150.76,0.00019339,2]
[386578508,1758408633451,-260.69617499,0.00019543,2]
[386578509,1758408633461,-705.54668405,0.00019733,2]
[386578510,1758408633470,-3782.66991819,0.0001979,2]
[386578511,1758408633479,-150.0,0.00019803,7]
[386578512,1758408633489,-516.38316968,0.00019891,2]
[386578513,1758408633498,-150.0,0.00019891,2]
[386578514,1758408633508,-672.02,0.00019891,2]
[386578515,1758408633517,-1090.6455436,0.000199,2]
[386578516,1758408633527,-3749.7990122,0.000199,2]
[386578517,1758408633537,-163.8223472,0.000199,2]
[386578518,1758408633546,-500.0,0.000199,7]
[386578519,1758408633556,-260.69617499,0.000199,2]
[386578520,1758408633566,-748.34220606,0.000199,2]
[386578521,1758408633575,-845.34823673,0.00019972,2]
[386578522,1758408633585,-500.0,0.0001998,2]
[386578523,1758408633594,-850.0,0.00019987,2]
[386578524,1758408633604,-401.4,0.00019987,3]